[Event "*** Titled Tuesday Blitz"]
[Site "Chess.com"]
[Date "2021.03.16"]
[Round "2"]
[White "GMKrikor"]
[Black "JimmmyZhang"]
[Result "0-1"]
[WhiteElo "2748"]
[BlackElo "2515"]
[TimeControl "180+1"]
[EndTime "10:18:18 PDT"]
[Termination "JimmmyZhang won by resignation"]

1. Nf3 {[%clk 0:03:00.9]} 1... Nf6 {[%clk 0:02:53.8]} 2. c4 {[%clk 0:03:00.6]}
2... e6 {[%clk 0:02:51.8]} 3. Nc3 {[%clk 0:03:00.5]} 3... d5 {[%clk 0:02:51.3]}
4. e3 {[%clk 0:03:00.5]} 4... Nbd7 {[%clk 0:02:48.7]} 5. b3 {[%clk 0:03:00.4]}
5... b6 {[%clk 0:02:48.3]} 6. Bb2 {[%clk 0:03:00.4]} 6... Bb7 {[%clk 0:02:45.2]}
7. cxd5 {[%clk 0:03:00.7]} 7... Nxd5 {[%clk 0:02:43]} 8. Nxd5 {[%clk 0:03:00.4]}
8... Bxd5 {[%clk 0:02:43.9]} 9. Rc1 {[%clk 0:02:55.4]} 9... c5 {[%clk
0:02:40.9]} 10. Be2 {[%clk 0:02:40.2]} 10... Be7 {[%clk 0:02:38.8]} 11. O-O
{[%clk 0:02:21.1]} 11... O-O {[%clk 0:02:37.9]} 12. d4 {[%clk 0:02:17.9]} 12...
Bf6 {[%clk 0:02:29.1]} 13. Qc2 {[%clk 0:02:12.7]} 13... Rc8 {[%clk 0:02:27.9]}
14. Qb1 {[%clk 0:02:12.3]} 14... Bb7 {[%clk 0:02:23.6]} 15. Rfd1 {[%clk
0:02:10.1]} 15... Qe7 {[%clk 0:02:23.5]} 16. dxc5 {[%clk 0:01:43]} 16... Nxc5
{[%clk 0:02:23.3]} 17. Qa1 {[%clk 0:01:26]} 17... Bxb2 {[%clk 0:02:17.1]} 18.
Qxb2 {[%clk 0:01:26.9]} 18... Rfd8 {[%clk 0:02:17.6]} 19. h3 {[%clk 0:01:23.6]}
19... Qf6 {[%clk 0:02:08.4]} 20. Qxf6 {[%clk 0:01:22.4]} 20... gxf6 {[%clk
0:02:09.3]} 21. Nd4 {[%clk 0:01:16.9]} 21... Ne4 {[%clk 0:02:05.8]} 22. Bf3
{[%clk 0:01:10.1]} 22... f5 {[%clk 0:02:00.9]} 23. Nb5 {[%clk 0:01:07.6]} 23...
Rxd1+ {[%clk 0:01:55.2]} 24. Rxd1 {[%clk 0:01:04.4]} 24... Bd5 {[%clk
0:01:55.4]} 25. Bxe4 {[%clk 0:00:58.4]} 25... Bxe4 {[%clk 0:01:54.6]} 26. f3
{[%clk 0:00:50.7]} 26... Bb7 {[%clk 0:01:49.8]} 27. Nd6 {[%clk 0:00:43.9]} 27...
Rd8 {[%clk 0:01:46.9]} 28. Kf2 {[%clk 0:00:44.1]} 28... Kf8 {[%clk 0:01:38.6]}
29. Ke1 {[%clk 0:00:40.5]} 29... Bc6 {[%clk 0:01:34.3]} 30. Nc4 {[%clk
0:00:39.2]} 30... Rc8 {[%clk 0:01:19.9]} 31. Ne5 {[%clk 0:00:33.1]} 31... Be8
{[%clk 0:01:15]} 32. Kd2 {[%clk 0:00:26.7]} 32... f6 {[%clk 0:01:05.2]} 33. Nd3
{[%clk 0:00:20.1]} 33... e5 {[%clk 0:01:05.2]} 34. Nb4 {[%clk 0:00:13.3]} 34...
Ke7 {[%clk 0:01:05.5]} 35. Nd5+ {[%clk 0:00:12.8]} 35... Ke6 {[%clk 0:01:03.6]}
36. Nc3 {[%clk 0:00:13.4]} 36... h5 {[%clk 0:00:59.7]} 37. Rc1 {[%clk
0:00:11.9]} 37... h4 {[%clk 0:00:59.9]} 38. Ne2 {[%clk 0:00:08.8]} 38... Rxc1
{[%clk 0:00:59.2]} 39. Nxc1 {[%clk 0:00:07]} 39... Bb5 {[%clk 0:00:57.4]} 40.
Ke1 {[%clk 0:00:07.4]} 40... Kd5 {[%clk 0:00:49.3]} 41. Ne2 {[%clk 0:00:06.9]}
41... Bxe2 {[%clk 0:00:44.5]} 42. Kxe2 {[%clk 0:00:07.8]} 42... b5 {[%clk
0:00:45.4]} 43. a3 {[%clk 0:00:06.8]} 43... a5 {[%clk 0:00:40.3]} 44. Kd2 {[%clk
0:00:07.1]} 44... Kc5 {[%clk 0:00:38.4]} 45. Kc3 {[%clk 0:00:07]} 45... b4+
{[%clk 0:00:34.3]} 46. axb4+ {[%clk 0:00:07]} 46... axb4+ {[%clk 0:00:35.2]} 47.
Kd3 {[%clk 0:00:07.6]} 47... Kd5 {[%clk 0:00:32]} 48. Kd2 {[%clk 0:00:04.7]}
48... f4 {[%clk 0:00:20.8]} 49. Kd3 {[%clk 0:00:04.6]} 49... fxe3 {[%clk
0:00:17.9]} 50. Kxe3 {[%clk 0:00:04.9]} 50... f5 {[%clk 0:00:17]} 51. Kd3 {[%clk
0:00:02.9]} 51... e4+ {[%clk 0:00:15.6]} 52. fxe4+ {[%clk 0:00:02.9]} 52...
fxe4+ {[%clk 0:00:14.5]} 53. Ke3 {[%clk 0:00:03.4]} 53... Ke5 {[%clk 0:00:14.2]}
54. Kf2 {[%clk 0:00:03.5]} 54... Kd4 {[%clk 0:00:13.3]} 55. g3 {[%clk
0:00:03.1]} 55... hxg3+ {[%clk 0:00:13]} 56. Kxg3 {[%clk 0:00:04]} 56... e3
{[%clk 0:00:13.5]} 57. h4 {[%clk 0:00:03.3]} 57... Kd3 {[%clk 0:00:12.6]} 58. h5
{[%clk 0:00:03.9]} 58... e2 {[%clk 0:00:12.9]} 59. h6 {[%clk 0:00:04.5]} 59...
e1=Q+ {[%clk 0:00:13.2]} 0-1

[Event "*** Titled Tuesday Blitz"]
[Site "Chess.com"]
[Date "2021.03.16"]
[Round "2"]
[White "HanSchut"]
[Black "zverr1"]
[Result "1-0"]
[WhiteElo "2245"]
[BlackElo "2459"]
[TimeControl "180+1"]
[EndTime "10:18:21 PDT"]
[Termination "HanSchut won by resignation"]

1. e4 {[%clk 0:03:00.9]} 1... g6 {[%clk 0:02:58.7]} 2. d4 {[%clk 0:03:00.8]}
2... Bg7 {[%clk 0:02:59.6]} 3. Nc3 {[%clk 0:03:01]} 3... c6 {[%clk 0:02:57.2]}
4. f4 {[%clk 0:02:59.7]} 4... d5 {[%clk 0:02:57.2]} 5. Nf3 {[%clk 0:03:00.1]}
5... Bg4 {[%clk 0:02:50]} 6. e5 {[%clk 0:02:43.6]} 6... Nh6 {[%clk 0:02:49.4]}
7. h3 {[%clk 0:02:40.2]} 7... Bxf3 {[%clk 0:02:48.9]} 8. Qxf3 {[%clk 0:02:41.1]}
8... Nf5 {[%clk 0:02:46]} 9. Ne2 {[%clk 0:02:33.7]} 9... h5 {[%clk 0:02:45.4]}
10. g3 {[%clk 0:02:29]} 10... c5 {[%clk 0:02:14.3]} 11. Bg2 {[%clk 0:01:45.5]}
11... e6 {[%clk 0:02:11]} 12. Qb3 {[%clk 0:01:38.7]} 12... Nc6 {[%clk
0:01:34.4]} 13. dxc5 {[%clk 0:01:05.8]} 13... Qa5+ {[%clk 0:01:28.7]} 14. Bd2
{[%clk 0:01:05.8]} 14... Qxc5 {[%clk 0:01:28.3]} 15. O-O-O {[%clk 0:01:04.1]}
15... h4 {[%clk 0:01:20.7]} 16. g4 {[%clk 0:00:59]} 16... Nfd4 {[%clk
0:01:20.4]} 17. Nxd4 {[%clk 0:00:55.1]} 17... Nxd4 {[%clk 0:01:21.3]} 18. Qa4+
{[%clk 0:00:43.4]} 18... b5 {[%clk 0:01:11]} 19. Bb4 {[%clk 0:00:37]} 19... bxa4
{[%clk 0:00:53.5]} 20. Bxc5 {[%clk 0:00:36.3]} 20... Ne2+ {[%clk 0:00:53.2]} 21.
Kb1 {[%clk 0:00:31.6]} 21... Nxf4 {[%clk 0:00:54.1]} 22. Bf1 {[%clk 0:00:31.7]}
22... Bxe5 {[%clk 0:00:54]} 23. Bb5+ {[%clk 0:00:31.1]} 23... Kd8 {[%clk
0:00:52.9]} 24. Rhe1 {[%clk 0:00:26.9]} 24... f6 {[%clk 0:00:50.7]} 25. c4
{[%clk 0:00:26.3]} 25... Rc8 {[%clk 0:00:42.7]} 26. Ba3 {[%clk 0:00:20.7]} 26...
d4 {[%clk 0:00:40.9]} 27. Bxa4 {[%clk 0:00:20.2]} 27... Nxh3 {[%clk 0:00:39.2]}
28. c5 {[%clk 0:00:19]} 28... Nf2 {[%clk 0:00:38.7]} 29. Rd2 {[%clk 0:00:18.4]}
29... Nxg4 {[%clk 0:00:38.9]} 30. Bb3 {[%clk 0:00:18.5]} 30... Kd7 {[%clk
0:00:37.5]} 31. Ba4+ {[%clk 0:00:18.3]} 31... Ke7 {[%clk 0:00:36.6]} 32. c6+
{[%clk 0:00:18.2]} 32... Kf7 {[%clk 0:00:37.5]} 33. Bd1 {[%clk 0:00:14.2]} 33...
Ne3 {[%clk 0:00:36.1]} 34. Rxe3 {[%clk 0:00:14.6]} 34... dxe3 {[%clk 0:00:36.3]}
35. Rd7+ {[%clk 0:00:15.5]} 35... Kg8 {[%clk 0:00:34.9]} 36. Bb3 {[%clk
0:00:15.4]} 36... Rh7 {[%clk 0:00:21.6]} 37. Bxe6+ {[%clk 0:00:13.1]} 37... Kh8
{[%clk 0:00:22.2]} 38. Rxh7+ {[%clk 0:00:12.1]} 38... Kxh7 {[%clk 0:00:23.1]}
39. Bxc8 {[%clk 0:00:12.6]} 39... e2 {[%clk 0:00:24]} 40. Bb4 {[%clk 0:00:12.1]}
40... Bg3 {[%clk 0:00:23.1]} 41. Bg4 {[%clk 0:00:11]} 41... f5 {[%clk
0:00:22.9]} 42. Bxe2 {[%clk 0:00:11]} 42... h3 {[%clk 0:00:23.3]} 43. Bf3 {[%clk
0:00:10.7]} 43... g5 {[%clk 0:00:23.3]} 44. Ba5 {[%clk 0:00:11.3]} 44... g4
{[%clk 0:00:23.3]} 45. Bd5 {[%clk 0:00:11.5]} 45... Bc7 {[%clk 0:00:20.6]} 46.
Bxc7 {[%clk 0:00:10.2]} 46... Kg6 {[%clk 0:00:18.8]} 47. Bf4 {[%clk 0:00:10.5]}
47... g3 {[%clk 0:00:18.7]} 48. Bxg3 {[%clk 0:00:10.6]} 48... Kh5 {[%clk
0:00:19.6]} 49. Be5 {[%clk 0:00:10.3]} 49... Kg4 {[%clk 0:00:20.5]} 50. c7
{[%clk 0:00:10.9]} 50... f4 {[%clk 0:00:20.7]} 51. Bxf4 {[%clk 0:00:10.5]} 51...
h2 {[%clk 0:00:21.6]} 52. c8=Q+ {[%clk 0:00:11.2]} 52... Kxf4 {[%clk 0:00:21.2]}
53. Qe6 {[%clk 0:00:09.4]} 53... a5 {[%clk 0:00:19.8]} 54. Qe4+ {[%clk
0:00:09.6]} 54... Kg5 {[%clk 0:00:20]} 55. Qg2+ {[%clk 0:00:10.1]} 55... Kf4
{[%clk 0:00:20.4]} 56. Qxh2+ {[%clk 0:00:10.2]} 56... Ke3 {[%clk 0:00:21.3]} 57.
Qc2 {[%clk 0:00:10.4]} 57... a4 {[%clk 0:00:21.6]} 58. Bc4 {[%clk 0:00:10.4]}
58... a3 {[%clk 0:00:22.5]} 59. bxa3 {[%clk 0:00:10.5]} 59... Kd4 {[%clk
0:00:23.4]} 60. Bb3 {[%clk 0:00:10.8]} 60... Ke3 {[%clk 0:00:23.5]} 61. a4
{[%clk 0:00:11.7]} 61... Kd4 {[%clk 0:00:24.4]} 62. a5 {[%clk 0:00:12.6]} 62...
Ke5 {[%clk 0:00:25.1]} 63. a6 {[%clk 0:00:12.9]} 63... Kd6 {[%clk 0:00:26]} 64.
a7 {[%clk 0:00:13.5]} 64... Kd7 {[%clk 0:00:26.3]} 65. a8=Q {[%clk 0:00:13.2]}
65... Ke7 {[%clk 0:00:27.2]} 66. Qa6 {[%clk 0:00:13]} 66... Kd7 {[%clk
0:00:27.6]} 67. Qc5 {[%clk 0:00:11.2]} 67... Kd8 {[%clk 0:00:27.5]} 68. Qca7
{[%clk 0:00:09.8]} 68... Ke8 {[%clk 0:00:28.4]} 69. Q6b7 {[%clk 0:00:09]} 1-0

[Event "*** Titled Tuesday Blitz"]
[Site "Chess.com"]
[Date "2021.03.16"]
[Round "2"]
[White "bakki78"]
[Black "ukchessbomber"]
[Result "1-0"]
[WhiteElo "2793"]
[BlackElo "2523"]
[TimeControl "180+1"]
[EndTime "10:18:22 PDT"]
[Termination "bakki78 won by checkmate"]

1. e4 {[%clk 0:03:00.9]} 1... e5 {[%clk 0:02:59.9]} 2. Nf3 {[%clk 0:03:00.3]}
2... Nc6 {[%clk 0:03:00.5]} 3. Bb5 {[%clk 0:03:00.4]} 3... a6 {[%clk 0:03:00]}
4. Ba4 {[%clk 0:03:00.5]} 4... Nf6 {[%clk 0:03:00.7]} 5. Nc3 {[%clk 0:03:00.8]}
5... Bc5 {[%clk 0:02:59.7]} 6. Bxc6 {[%clk 0:02:57.9]} 6... dxc6 {[%clk
0:03:00.2]} 7. d3 {[%clk 0:02:58.1]} 7... Nd7 {[%clk 0:02:58.8]} 8. Ne2 {[%clk
0:02:55.4]} 8... O-O {[%clk 0:02:57.4]} 9. Ng3 {[%clk 0:02:55.5]} 9... Re8
{[%clk 0:02:57.6]} 10. O-O {[%clk 0:02:54]} 10... f6 {[%clk 0:02:56.2]} 11. c3
{[%clk 0:02:51]} 11... Nf8 {[%clk 0:02:52.1]} 12. h3 {[%clk 0:02:36.5]} 12...
Ba7 {[%clk 0:02:40.7]} 13. Be3 {[%clk 0:02:27.2]} 13... Ng6 {[%clk 0:02:32.9]}
14. Bxa7 {[%clk 0:02:12.8]} 14... Rxa7 {[%clk 0:02:33.8]} 15. d4 {[%clk
0:02:13.1]} 15... Qe7 {[%clk 0:02:23.5]} 16. Nf5 {[%clk 0:02:06.4]} 16... Qf8
{[%clk 0:02:20.2]} 17. Re1 {[%clk 0:02:01.3]} 17... Be6 {[%clk 0:02:12.4]} 18.
dxe5 {[%clk 0:01:59.2]} 18... fxe5 {[%clk 0:02:10.9]} 19. Ng5 {[%clk 0:01:58.4]}
19... Qf6 {[%clk 0:01:48.2]} 20. Nxe6 {[%clk 0:01:57.1]} 20... Qxe6 {[%clk
0:01:49.1]} 21. g3 {[%clk 0:01:52.5]} 21... Raa8 {[%clk 0:01:48.4]} 22. Qb3
{[%clk 0:01:52.1]} 22... Qxb3 {[%clk 0:01:32.2]} 23. axb3 {[%clk 0:01:51.4]}
23... Ne7 {[%clk 0:01:31]} 24. Ne3 {[%clk 0:01:50.5]} 24... Rad8 {[%clk
0:01:29.1]} 25. Red1 {[%clk 0:01:50.5]} 25... Nc8 {[%clk 0:01:25]} 26. f3 {[%clk
0:01:45.3]} 26... Kf7 {[%clk 0:01:23.2]} 27. Kf2 {[%clk 0:01:44.4]} 27... Nd6
{[%clk 0:01:21.7]} 28. Ke2 {[%clk 0:01:44.1]} 28... Rd7 {[%clk 0:01:16.5]} 29.
Ra5 {[%clk 0:01:42.5]} 29... Rdd8 {[%clk 0:01:05.2]} 30. Ng4 {[%clk 0:01:40]}
30... Nb5 {[%clk 0:00:53.8]} 31. Rxd8 {[%clk 0:01:38.7]} 31... Rxd8 {[%clk
0:00:54.7]} 32. Nxe5+ {[%clk 0:01:38.6]} 32... Ke6 {[%clk 0:00:55.2]} 33. Nd3
{[%clk 0:01:37]} 33... Kd6 {[%clk 0:00:38.9]} 34. b4 {[%clk 0:01:34.6]} 34...
Ra8 {[%clk 0:00:34]} 35. Ra1 {[%clk 0:01:26.6]} 35... b6 {[%clk 0:00:33.5]} 36.
Rd1 {[%clk 0:01:25.5]} 36... Ke6 {[%clk 0:00:30.6]} 37. Ra1 {[%clk 0:01:17.7]}
37... Kd6 {[%clk 0:00:29]} 38. h4 {[%clk 0:01:17.8]} 38... h6 {[%clk 0:00:26.8]}
39. Ke3 {[%clk 0:01:17.8]} 39... Ke6 {[%clk 0:00:23.8]} 40. h5 {[%clk
0:01:17.4]} 40... Nd6 {[%clk 0:00:22.3]} 41. g4 {[%clk 0:01:12.2]} 41... Nc4+
{[%clk 0:00:20.9]} 42. Ke2 {[%clk 0:01:12.1]} 42... Nd6 {[%clk 0:00:21.8]} 43.
Ne1 {[%clk 0:01:00.2]} 43... Nc4 {[%clk 0:00:21.6]} 44. b3 {[%clk 0:00:59.3]}
44... Nd6 {[%clk 0:00:18.1]} 45. Nc2 {[%clk 0:00:56.3]} 45... Nb5 {[%clk
0:00:17.5]} 46. c4 {[%clk 0:00:55.1]} 46... Nd6 {[%clk 0:00:17.4]} 47. Nd4+
{[%clk 0:00:54.9]} 47... Kd7 {[%clk 0:00:17.2]} 48. e5 {[%clk 0:00:54.2]} 48...
Nc8 {[%clk 0:00:14.2]} 49. Rd1 {[%clk 0:00:50.4]} 49... c5 {[%clk 0:00:13.9]}
50. bxc5 {[%clk 0:00:45.5]} 50... bxc5 {[%clk 0:00:14.8]} 51. Nf5+ {[%clk
0:00:45.5]} 51... Ke6 {[%clk 0:00:14.4]} 52. f4 {[%clk 0:00:45.8]} 52... Ne7
{[%clk 0:00:12.2]} 53. Nxg7+ {[%clk 0:00:45]} 53... Kf7 {[%clk 0:00:12.4]} 54.
Nf5 {[%clk 0:00:44.4]} 54... Nc6 {[%clk 0:00:11.5]} 55. Rd7+ {[%clk 0:00:43.7]}
55... Ke6 {[%clk 0:00:10.7]} 56. Rxc7 {[%clk 0:00:43.7]} 56... Nd4+ {[%clk
0:00:09]} 57. Nxd4+ {[%clk 0:00:43.2]} 57... cxd4 {[%clk 0:00:09.9]} 58. Rc6+
{[%clk 0:00:42.5]} 58... Kd7 {[%clk 0:00:09.9]} 59. Rxh6 {[%clk 0:00:40.4]}
59... Ke7 {[%clk 0:00:10.8]} 60. Kd3 {[%clk 0:00:40]} 60... Rb8 {[%clk
0:00:10.1]} 61. Rxa6 {[%clk 0:00:39.7]} 61... Rxb3+ {[%clk 0:00:09.6]} 62. Kxd4
{[%clk 0:00:40.1]} 62... Rg3 {[%clk 0:00:10.5]} 63. g5 {[%clk 0:00:39.4]} 63...
Rg4 {[%clk 0:00:11.4]} 64. Ke4 {[%clk 0:00:39.5]} 64... Rh4 {[%clk 0:00:12.3]}
65. h6 {[%clk 0:00:39.5]} 65... Rh1 {[%clk 0:00:12.3]} 66. h7 {[%clk 0:00:39.4]}
66... Kf8 {[%clk 0:00:13.1]} 67. Ra8+ {[%clk 0:00:38.7]} 67... Kf7 {[%clk
0:00:08]} 68. h8=Q {[%clk 0:00:37.2]} 68... Re1+ {[%clk 0:00:07.7]} 69. Kf5
{[%clk 0:00:35.8]} 69... Rxe5+ {[%clk 0:00:07.7]} 70. fxe5 {[%clk 0:00:35.3]}
70... Ke7 {[%clk 0:00:07.6]} 71. Qg7# {[%clk 0:00:34.6]} 1-0

[Event "*** Titled Tuesday Blitz"]
[Site "Chess.com"]
[Date "2021.03.16"]
[Round "2"]
[White "korbul"]
[Black "northridgehawk"]
[Result "1-0"]
[WhiteElo "2613"]
[BlackElo "2348"]
[TimeControl "180+1"]
[EndTime "10:18:25 PDT"]
[Termination "korbul won by resignation"]

1. d4 {[%clk 0:03:00.9]} 1... Nf6 {[%clk 0:02:58.6]} 2. Nf3 {[%clk 0:02:59.1]}
2... g6 {[%clk 0:02:59.2]} 3. Bg5 {[%clk 0:02:57.1]} 3... Bg7 {[%clk 0:02:59.9]}
4. Nbd2 {[%clk 0:02:56.5]} 4... d5 {[%clk 0:02:58.5]} 5. e3 {[%clk 0:02:54.8]}
5... h6 {[%clk 0:02:57.4]} 6. Bh4 {[%clk 0:02:53.8]} 6... O-O {[%clk 0:02:57.3]}
7. Bd3 {[%clk 0:02:52.4]} 7... c5 {[%clk 0:02:55.4]} 8. c3 {[%clk 0:02:52.2]}
8... Nc6 {[%clk 0:02:55.7]} 9. O-O {[%clk 0:02:51.1]} 9... Be6 {[%clk
0:02:32.4]} 10. dxc5 {[%clk 0:02:45.9]} 10... Nd7 {[%clk 0:02:25.2]} 11. Nd4
{[%clk 0:02:39.8]} 11... Nxc5 {[%clk 0:02:21.8]} 12. Nxe6 {[%clk 0:02:38.1]}
12... Nxe6 {[%clk 0:02:17]} 13. Bc2 {[%clk 0:02:29.8]} 13... Qb6 {[%clk
0:02:09.2]} 14. Rb1 {[%clk 0:02:28.3]} 14... Rad8 {[%clk 0:02:03.4]} 15. Qe2
{[%clk 0:02:27.4]} 15... Rd7 {[%clk 0:01:50.3]} 16. Rfd1 {[%clk 0:02:24.5]}
16... Rfd8 {[%clk 0:01:48.6]} 17. f4 {[%clk 0:02:15.3]} 17... Nxf4 {[%clk
0:01:46.2]} 18. Qf2 {[%clk 0:02:11.2]} 18... Na5 {[%clk 0:01:10.9]} 19. Qxf4
{[%clk 0:02:06.4]} 19... g5 {[%clk 0:01:10.7]} 20. Bxg5 {[%clk 0:01:55.2]} 20...
hxg5 {[%clk 0:01:11.6]} 21. Qxg5 {[%clk 0:01:55.1]} 21... Rd6 {[%clk 0:01:07.5]}
22. Nf3 {[%clk 0:01:50.1]} 22... Nc4 {[%clk 0:01:05.3]} 23. Nd4 {[%clk
0:01:45.5]} 23... e6 {[%clk 0:00:24.6]} 24. Rf1 {[%clk 0:01:21]} 24... R8d7
{[%clk 0:00:16.9]} 25. Rf2 {[%clk 0:00:54.9]} 25... Qd8 {[%clk 0:00:15.4]} 26.
Qh5 {[%clk 0:00:52.8]} 26... Ne5 {[%clk 0:00:13.3]} 27. Rbf1 {[%clk 0:00:45.5]}
27... Qe7 {[%clk 0:00:12.5]} 28. Rf4 {[%clk 0:00:38.4]} 28... f5 {[%clk
0:00:12.4]} 29. Rh4 {[%clk 0:00:18.7]} 29... Qf6 {[%clk 0:00:10.9]} 30. Qh7+
{[%clk 0:00:17.1]} 30... Kf8 {[%clk 0:00:11]} 31. Nxf5 {[%clk 0:00:17.3]} 31...
exf5 {[%clk 0:00:07.3]} 32. Rxf5 {[%clk 0:00:16.5]} 32... Rf7 {[%clk 0:00:07.4]}
33. Rxf6 {[%clk 0:00:16.2]} 33... Rdxf6 {[%clk 0:00:08.3]} 34. h3 {[%clk
0:00:14.8]} 34... Rf1+ {[%clk 0:00:07.7]} 35. Kh2 {[%clk 0:00:15]} 35... R1f2
{[%clk 0:00:08.6]} 36. Rf4 {[%clk 0:00:14.7]} 36... R7xf4 {[%clk 0:00:08.8]} 37.
exf4 {[%clk 0:00:14.9]} 37... Nf7 {[%clk 0:00:09.2]} 38. Qg6 {[%clk 0:00:13.8]}
38... Rxf4 {[%clk 0:00:09.1]} 39. Kg3 {[%clk 0:00:13.5]} 39... Rf6 {[%clk
0:00:09.3]} 40. Qg4 {[%clk 0:00:12.3]} 40... Bh6 {[%clk 0:00:09.6]} 41. Kh2
{[%clk 0:00:12.1]} 41... Bf4+ {[%clk 0:00:09.1]} 42. Kg1 {[%clk 0:00:11.9]}
42... Be5 {[%clk 0:00:10]} 43. g3 {[%clk 0:00:11.3]} 43... d4 {[%clk 0:00:10.5]}
44. cxd4 {[%clk 0:00:10.3]} 44... Bd6 {[%clk 0:00:11]} 45. Bb3 {[%clk
0:00:10.2]} 45... Ke7 {[%clk 0:00:10.7]} 46. Kg2 {[%clk 0:00:10.4]} 46... Nd8
{[%clk 0:00:11]} 47. Qe4+ {[%clk 0:00:10.4]} 47... Kd7 {[%clk 0:00:11.1]} 48.
Bd5 {[%clk 0:00:09.7]} 48... Rf8 {[%clk 0:00:10.5]} 49. h4 {[%clk 0:00:10]}
49... Kc7 {[%clk 0:00:11.4]} 50. h5 {[%clk 0:00:08.7]} 50... Re8 {[%clk
0:00:11.3]} 51. Qxe8 {[%clk 0:00:08]} 51... b6 {[%clk 0:00:11.1]} 52. Qe4 {[%clk
0:00:06.8]} 52... a5 {[%clk 0:00:11.3]} 53. h6 {[%clk 0:00:06.9]} 53... Bf8
{[%clk 0:00:11.1]} 54. h7 {[%clk 0:00:06.7]} 54... Bg7 {[%clk 0:00:11.7]} 55.
Qe7+ {[%clk 0:00:07]} 55... Kc8 {[%clk 0:00:11.9]} 56. Qxg7 {[%clk 0:00:06.7]}
1-0

[Event "*** Titled Tuesday Blitz"]
[Site "Chess.com"]
[Date "2021.03.16"]
[Round "2"]
[White "mishanick"]
[Black "jfriedel"]
[Result "1-0"]
[WhiteElo "3017"]
[BlackElo "2616"]
[TimeControl "180+1"]
[EndTime "10:18:32 PDT"]
[Termination "mishanick won by resignation"]

1. e4 {[%clk 0:03:00.9]} 1... e5 {[%clk 0:02:59.2]} 2. Nf3 {[%clk 0:03:01.5]}
2... Nc6 {[%clk 0:02:59.5]} 3. Bb5 {[%clk 0:03:02.1]} 3... a6 {[%clk 0:02:59.5]}
4. Ba4 {[%clk 0:03:02.6]} 4... d6 {[%clk 0:02:59.6]} 5. c3 {[%clk 0:03:01.7]}
5... Bd7 {[%clk 0:02:59.3]} 6. d4 {[%clk 0:03:01.8]} 6... Nf6 {[%clk 0:02:56.5]}
7. Qe2 {[%clk 0:02:43.8]} 7... b5 {[%clk 0:02:34.2]} 8. Bb3 {[%clk 0:02:42.7]}
8... Bg4 {[%clk 0:02:22.7]} 9. Be3 {[%clk 0:02:39.7]} 9... Be7 {[%clk
0:02:00.3]} 10. Nbd2 {[%clk 0:02:39.2]} 10... O-O {[%clk 0:01:59.7]} 11. O-O
{[%clk 0:02:37.4]} 11... Bh5 {[%clk 0:01:42.8]} 12. a4 {[%clk 0:02:35.3]} 12...
Rb8 {[%clk 0:01:34.9]} 13. axb5 {[%clk 0:02:33.2]} 13... axb5 {[%clk 0:01:35.8]}
14. Ra6 {[%clk 0:02:32.2]} 14... Qd7 {[%clk 0:01:31.6]} 15. Rd1 {[%clk
0:01:58.5]} 15... Ng4 {[%clk 0:01:28.3]} 16. h3 {[%clk 0:01:56.2]} 16... Nxe3
{[%clk 0:01:28.3]} 17. Qxe3 {[%clk 0:01:55.2]} 17... exd4 {[%clk 0:01:24.6]} 18.
cxd4 {[%clk 0:01:56.1]} 18... Bf6 {[%clk 0:01:23.7]} 19. Rc1 {[%clk 0:01:48.4]}
19... Rb6 {[%clk 0:01:06.4]} 20. Rxb6 {[%clk 0:01:47.6]} 20... cxb6 {[%clk
0:01:07.3]} 21. Qd3 {[%clk 0:01:07.9]} 21... Na5 {[%clk 0:00:48.4]} 22. Bd5
{[%clk 0:01:07.1]} 22... h6 {[%clk 0:00:40.3]} 23. b3 {[%clk 0:00:51]} 23... b4
{[%clk 0:00:38]} 24. Qa6 {[%clk 0:00:46.9]} 24... Rb8 {[%clk 0:00:32.1]} 25. Qd3
{[%clk 0:00:40]} 25... Rc8 {[%clk 0:00:31.4]} 26. Rc2 {[%clk 0:00:39.2]} 26...
Rc7 {[%clk 0:00:30.5]} 27. g4 {[%clk 0:00:29.5]} 27... Bg6 {[%clk 0:00:28.1]}
28. Kg2 {[%clk 0:00:28.8]} 28... Qc8 {[%clk 0:00:28]} 29. Rxc7 {[%clk
0:00:28.8]} 29... Qxc7 {[%clk 0:00:28.9]} 30. Qb5 {[%clk 0:00:29.2]} 30... Kh7
{[%clk 0:00:23.9]} 31. Qxb4 {[%clk 0:00:28.6]} 31... Be7 {[%clk 0:00:08.5]} 32.
Qb5 {[%clk 0:00:25.3]} 32... h5 {[%clk 0:00:08.2]} 33. b4 {[%clk 0:00:24.2]}
33... hxg4 {[%clk 0:00:08.1]} 34. hxg4 {[%clk 0:00:23.6]} 34... Nb7 {[%clk
0:00:08.1]} 35. Qe8 {[%clk 0:00:19.8]} 35... Nd8 {[%clk 0:00:06.8]} 36. Qb5
{[%clk 0:00:18.6]} 36... Qc8 {[%clk 0:00:06.7]} 37. Nh2 {[%clk 0:00:17.9]} 37...
Ne6 {[%clk 0:00:06.8]} 38. Bxe6 {[%clk 0:00:15.5]} 38... Qxe6 {[%clk 0:00:07.7]}
39. Qd3 {[%clk 0:00:15.8]} 39... d5 {[%clk 0:00:07.7]} 40. Qh3+ {[%clk
0:00:15.6]} 40... Kg8 {[%clk 0:00:08.2]} 41. e5 {[%clk 0:00:16.1]} 41... Bxb4
{[%clk 0:00:08.1]} 42. Qe3 {[%clk 0:00:14.6]} 42... Bxd2 {[%clk 0:00:07.4]} 43.
Qxd2 {[%clk 0:00:15.5]} 43... b5 {[%clk 0:00:08.1]} 44. Qb4 {[%clk 0:00:15.4]}
44... Qc6 {[%clk 0:00:08.2]} 45. Nf1 {[%clk 0:00:14.8]} 45... Be4+ {[%clk
0:00:07.7]} 46. Kg3 {[%clk 0:00:11.9]} 46... Qc4 {[%clk 0:00:05.7]} 47. Qe1
{[%clk 0:00:10]} 47... b4 {[%clk 0:00:05.6]} 48. f3 {[%clk 0:00:08.7]} 48... Qd3
{[%clk 0:00:04.6]} 49. Ne3 {[%clk 0:00:07.4]} 49... Bg6 {[%clk 0:00:03.8]} 50.
Nxd5 {[%clk 0:00:07.4]} 50... b3 {[%clk 0:00:04.2]} 51. Qb4 {[%clk 0:00:07.3]}
51... Be4 {[%clk 0:00:03]} 52. Ne7+ {[%clk 0:00:07.3]} 52... Kh7 {[%clk
0:00:03.1]} 53. Qe1 {[%clk 0:00:04.6]} 53... Qxf3+ {[%clk 0:00:03.4]} 54. Kh4
{[%clk 0:00:05.2]} 54... Qh1+ {[%clk 0:00:03.1]} 55. Qxh1 {[%clk 0:00:04.7]}
55... Bxh1 {[%clk 0:00:04]} 56. e6 {[%clk 0:00:05.3]} 56... b2 {[%clk
0:00:04.9]} 57. exf7 {[%clk 0:00:05.1]} 57... b1=Q {[%clk 0:00:05.2]} 58. f8=Q
{[%clk 0:00:05.2]} 58... Qe1+ {[%clk 0:00:05.6]} 59. Kh5 {[%clk 0:00:05.3]}
59... Qe6 {[%clk 0:00:05.1]} 60. Qf5+ {[%clk 0:00:04.2]} 60... g6+ {[%clk
0:00:04.5]} 61. Nxg6 {[%clk 0:00:03.2]} 61... Qxg6+ {[%clk 0:00:05.1]} 62. Qxg6+
{[%clk 0:00:03.2]} 1-0